bitfinex/quotes_BTCUSD_20241027
["timestamp","ask_amount","ask_price","bid_price","bid_amount"]
[1730022986323,0.06307383,67104.0,67103.0,0.56368729]
[1730022986543,0.06307383,67104.0,67103.0,0.55156026]
[1730022987369,0.06307383,67104.0,67103.0,0.63878729]
[1730022987578,0.06307383,67104.0,67103.0,0.55156026]
[1730022987992,0.06307383,67104.0,67103.0,0.63878729]
[1730022989032,0.001642,67105.0,67104.0,0.154022]
[1730022989302,0.006,67109.0,67108.0,0.32846706]
[1730022989527,0.006,67109.0,67108.0,0.51051205]
[1730022991795,0.004,67109.0,67108.0,0.51051205]
[1730022992220,0.004,67109.0,67108.0,0.50051205]
[1730022992432,0.004,67109.0,67108.0,0.41828502]
[1730022994440,0.003642,67109.0,67108.0,0.41828502]
[1730022995528,0.001642,67117.0,67108.0,0.41828502]
[1730022995529,0.001642,67117.0,67116.0,0.148995]
[1730022995755,0.001642,67117.0,67116.0,0.64015287]
[1730022995966,0.02004589,67117.0,67116.0,0.64015287]
[1730022996187,0.001642,67117.0,67116.0,0.64015287]
[1730022996415,0.005642,67117.0,67116.0,0.64015287]
[1730023004818,0.005642,67117.0,67116.0,0.55292584]
[1730023012480,0.005642,67117.0,67116.0,0.38672584]
[1730023020511,0.005642,67117.0,67116.0,0.48372584]
[1730023020730,0.005642,67117.0,67116.0,0.56682584]
[1730023022740,0.005642,67117.0,67116.0,0.57867446]
[1730023025572,0.01681442,67117.0,67116.0,0.57867446]
[1730023029957,0.01681404,67117.0,67116.0,0.57867446]
[1730023031369,0.01681404,67117.0,67116.0,0.49144743]
[1730023032718,0.005642,67117.0,67116.0,0.49144743]
[1730023032926,0.01681415,67117.0,67116.0,0.49144743]
[1730023034369,0.005642,67117.0,67116.0,0.49144743]
[1730023035651,0.01681435,67117.0,67116.0,0.49144743]
[1730023036322,0.005642,67117.0,67116.0,0.49144743]
[1730023036954,0.01681446,67117.0,67116.0,0.49144743]
[1730023037601,0.005642,67117.0,67116.0,0.49144743]
[1730023039046,0.01681456,67117.0,67116.0,0.49144743]
[1730023042209,0.005642,67117.0,67116.0,0.49144743]
[1730023044366,0.01681632,67117.0,67116.0,0.49144743]
[1730023046260,0.005642,67117.0,67116.0,0.49144743]
[1730023046460,0.01681691,67117.0,67116.0,0.49144743]
[1730023048410,0.005642,67117.0,67116.0,0.49144743]
[1730023048610,0.01681705,67117.0,67116.0,0.49144743]
[1730023050592,0.01681705,67117.0,67116.0,0.31134743]
[1730023051798,0.03600715,67117.0,67116.0,0.31134743]
[1730023052203,0.03600834,67117.0,67116.0,0.31134743]
[1730023059247,0.04998067,67117.0,67116.0,0.31134743]
[1730023059442,0.04998058,67117.0,67116.0,0.31134743]
[1730023060782,0.13298058,67117.0,67116.0,0.148995]
[1730023060996,0.1508638,67117.0,67116.0,0.148995]
[1730023063054,0.121796,67117.0,67116.0,0.148995]
[1730023063284,0.15084091,67117.0,67116.0,0.148995]
[1730023063498,0.15083689,67117.0,67116.0,0.148995]
[1730023066992,0.15082505,67117.0,67116.0,0.148995]
[1730023068064,0.04995785,67117.0,67116.0,0.148995]
[1730023068266,0.0359991,67117.0,67116.0,0.148995]
[1730023070428,0.0248321,67117.0,67116.0,0.148995]
[1730023070627,0.005642,67117.0,67116.0,0.148995]
[1730023070827,0.01680799,67117.0,67116.0,0.148995]
[1730023071439,0.03597427,67117.0,67116.0,0.148995]
[1730023073135,0.03597427,67117.0,67116.0,0.39059881]
[1730023073336,0.02480828,67117.0,67116.0,0.39059881]
[1730023073562,0.005642,67117.0,67116.0,0.39059881]
[1730023077967,0.005642,67117.0,67116.0,0.38559881]
[1730023088777,0.005142,67117.0,67116.0,0.38559881]
[1730023102522,0.005142,67117.0,67116.0,0.38641981]
[1730023117475,0.005142,67117.0,67116.0,0.43110273]
[1730023117913,0.01632416,67117.0,67116.0,0.38641981]
[1730023119469,0.005142,67117.0,67116.0,0.38641981]
[1730023120849,0.01632289,67117.0,67116.0,0.38641981]
[1730023121565,0.005142,67117.0,67116.0,0.38641981]
[1730023121803,0.01632259,67117.0,67116.0,0.38641981]
[1730023122021,0.005142,67117.0,67116.0,0.38641981]
[1730023122238,0.005142,67117.0,67116.0,0.38532312]
[1730023124461,0.005142,67117.0,67116.0,0.29422312]
[1730023124694,0.01632217,67117.0,67116.0,0.29422312]
[1730023126934,0.005142,67117.0,67116.0,0.29422312]
[1730023127160,0.01632164,67117.0,67116.0,0.29422312]
[1730023128791,0.005142,67117.0,67116.0,0.29422312]
[1730023129455,0.01632125,67117.0,67116.0,0.29422312]
[1730023130602,0.005142,67117.0,67116.0,0.29422312]
[1730023131278,0.01632101,67117.0,67116.0,0.29422312]
[1730023132010,0.01632085,67117.0,67116.0,0.29422312]
[1730023133787,0.005142,67117.0,67116.0,0.29422312]
[1730023134031,0.0163206,67117.0,67116.0,0.29422312]
[1730023137979,0.0163206,67117.0,67116.0,0.2924101]
[1730023139551,0.01632075,67117.0,67116.0,0.2924101]
[1730023141980,0.005142,67117.0,67116.0,0.2924101]
[1730023142231,0.01632099,67117.0,67116.0,0.2924101]
[1730023146018,0.005142,67117.0,67116.0,0.3852101]
[1730023146467,0.01632212,67117.0,67116.0,0.3852101]
[1730023148646,0.005142,67117.0,67116.0,0.3852101]
[1730023149069,0.005142,67117.0,67116.0,0.4604101]
[1730023150784,0.01632383,67117.0,67116.0,0.4604101]
[1730023151903,0.01632396,67117.0,67116.0,0.4604101]
[1730023153694,0.01632396,67117.0,67116.0,0.45931091]
[1730023155660,0.01632452,67117.0,67116.0,0.45931091]
[1730023156520,0.01632452,67117.0,67116.0,0.29131091]
[1730023159404,0.01632461,67117.0,67116.0,0.29131091]
[1730023170528,0.005142,67117.0,67116.0,0.29131091]
[1730023170750,0.01632481,67117.0,67116.0,0.29131091]
[1730023174519,0.0163249,67117.0,67116.0,0.29131091]
[1730023182946,0.03549017,67117.0,67116.0,0.29131091]
[1730023188760,0.02430727,67117.0,67116.0,0.29131091]
[1730023188986,0.0354834,67117.0,67116.0,0.29131091]
[1730023192964,0.01916188,67117.0,67116.0,0.59831081]
[1730023193389,0.0934,67121.0,67116.0,0.15132481]
[1730023193604,0.0934,67121.0,67120.0,0.148986]
[1730023202472,0.095042,67121.0,67120.0,0.148986]
[1730023204988,0.10622019,67121.0,67120.0,0.148986]
[1730023206284,0.01282019,67121.0,67120.0,0.148986]
[1730023211908,0.0128227,67121.0,67120.0,0.148986]
[1730023212351,0.001642,67121.0,67120.0,0.148986]
[1730023213032,0.01282297,67121.0,67120.0,0.148986]
[1730023213706,0.01282297,67121.0,67120.0,0.149807]
[1730023218076,0.02977118,67121.0,67120.0,0.149807]
[1730023218317,0.01282297,67121.0,67120.0,0.149807]
[1730023218523,0.02977118,67121.0,67120.0,0.149807]
[1730023219179,0.02977162,67121.0,67120.0,0.149807]
[1730023221615,0.02977162,67121.0,67120.0,0.178571]
[1730023222959,0.02977015,67121.0,67120.0,0.178571]
[1730023226776,0.02977029,67121.0,67120.0,0.178571]
[1730023230722,0.02976988,67121.0,67120.0,0.178571]
[1730023233578,0.0297699,67121.0,67120.0,0.178571]
[1730023236326,0.02976918,67121.0,67120.0,0.178571]
[1730023237940,0.01858949,67121.0,67120.0,0.178571]
[1730023238171,0.02876855,67121.0,67120.0,0.178571]
[1730023241789,0.02876606,67121.0,67120.0,0.178571]
[1730023242010,0.02876605,67121.0,67120.0,0.178571]
[1730023243122,0.01181856,67121.0,67120.0,0.178571]
[1730023245624,0.01181854,67121.0,67120.0,0.178571]
[1730023248178,0.01181854,67121.0,67120.0,0.32907481]
[1730023248407,0.01181854,67121.0,67120.0,0.41987481]
[1730023249162,0.01181854,67121.0,67120.0,0.49777481]
[1730023256544,0.01181633,67121.0,67120.0,0.49777481]
[1730023262952,0.01181599,67121.0,67120.0,0.49777481]
[1730023263370,0.01181597,67121.0,67120.0,0.49777481]
[1730023266710,0.000642,67121.0,67120.0,0.49777481]
[1730023266921,0.01181594,67121.0,67120.0,0.49777481]
[1730023275127,0.01181673,67121.0,67120.0,0.49777481]
[1730023278511,0.01181673,67121.0,67120.0,0.32907481]
[1730023282394,0.000642,67121.0,67120.0,0.32907481]
[1730023282612,0.01181546,67121.0,67120.0,0.32907481]
[1730023286161,0.000642,67121.0,67120.0,0.32907481]
[1730023286367,0.0118157,67121.0,67120.0,0.32907481]
[1730023290086,0.000642,67121.0,67120.0,0.32907481]
[1730023290519,0.01181556,67121.0,67120.0,0.32907481]
[1730023294031,0.000642,67121.0,67120.0,0.32907481]
[1730023294289,0.01181573,67121.0,67120.0,0.32907481]
[1730023297945,0.000642,67121.0,67120.0,0.32907481]
[1730023298200,0.0118153,67121.0,67120.0,0.32907481]
[1730023298420,0.000642,67121.0,67120.0,0.32907481]
[1730023298659,0.02876617,67121.0,67120.0,0.32907481]
[1730023298885,0.01181524,67121.0,67120.0,0.32907481]
[1730023299126,0.02876617,67121.0,67120.0,0.32907481]
[1730023299349,0.01181524,67121.0,67120.0,0.32907481]
[1730023299593,0.02876617,67121.0,67120.0,0.32907481]
[1730023301909,0.01759293,67121.0,67120.0,0.32907481]
[1730023302147,0.02876581,67121.0,67120.0,0.32907481]
[1730023305893,0.01759293,67121.0,67120.0,0.32907481]
[1730023306116,0.02876582,67121.0,67120.0,0.32907481]
[1730023306825,0.01181489,67121.0,67120.0,0.32907481]
[1730023309887,0.01181482,67121.0,67120.0,0.32907481]
[1730023314044,0.01181484,67121.0,67120.0,0.32907481]
[1730023317824,0.02298772,67121.0,67120.0,0.32907481]
[1730023318035,0.01181488,67121.0,67120.0,0.32907481]
[1730023321361,0.01181562,67121.0,67120.0,0.32907481]
[1730023339500,0.000642,67121.0,67120.0,0.32907481]
[1730023339710,0.01181527,67121.0,67120.0,0.32907481]
[1730023341888,0.01181527,67121.0,67120.0,0.30031081]
[1730023343211,0.01181519,67121.0,67120.0,0.30031081]
[1730023343670,0.000642,67121.0,67120.0,0.30031081]
[1730023343900,0.01181528,67121.0,67120.0,0.30031081]
[1730023355057,0.000642,67121.0,67120.0,0.30031081]
[1730023355185,0.01181365,67121.0,67120.0,0.30031081]
[1730023356499,0.000642,67121.0,67120.0,0.30031081]
[1730023356711,0.01181369,67121.0,67120.0,0.30031081]
[1730023358513,0.000642,67121.0,67120.0,0.30031081]
[1730023358740,0.01181306,67121.0,67120.0,0.30031081]
[1730023368232,0.02577614,67121.0,67120.0,0.30031081]
[1730023369931,0.0257761,67121.0,67120.0,0.30031081]
[1730023373669,0.01181306,67121.0,67120.0,0.30031081]
[1730023373891,0.02577556,67121.0,67120.0,0.30031081]
[1730023377499,0.0257757,67121.0,67120.0,0.30031081]
[1730023384909,0.0257757,67121.0,67120.0,0.000821]
[1730023385155,0.52020104,67121.0,67120.0,0.000821]
[1730023385387,0.46201846,67121.0,67120.0,0.000821]
[1730023385601,0.62687917,67121.0,67120.0,0.000821]
[1730023386025,0.53750401,67121.0,67120.0,0.000821]
[1730023386450,0.62680017,67121.0,67120.0,0.000821]
[1730023387402,0.37262672,67121.0,67120.0,0.000821]
[1730023388050,0.53740297,67121.0,67120.0,0.000821]
[1730023388518,0.62665684,67121.0,67120.0,0.000821]
[1730023388746,0.53740297,67121.0,67120.0,0.000821]
[1730023389422,0.62663522,67121.0,67120.0,0.000821]
[1730023390532,0.53740297,67121.0,67120.0,0.000821]
[1730023390744,0.53739154,67121.0,67120.0,0.000821]
[1730023391472,0.37261529,67121.0,67120.0,0.000821]
[1730023392560,0.43951597,67121.0,67120.0,0.000821]
[1730023393238,0.41441028,67121.0,67120.0,0.000821]
[1730023393458,0.43948529,67121.0,67120.0,0.000821]
[1730023394545,0.37258461,67121.0,67120.0,0.000821]
[1730023396629,0.41716308,67121.0,67120.0,0.000821]
[1730023396865,0.41716218,67121.0,67120.0,0.000821]
[1730023397281,0.41715859,67121.0,67120.0,0.000821]
[1730023398155,0.41715835,67121.0,67120.0,0.000821]
[1730023398603,0.37258078,67121.0,67120.0,0.000821]
[1730023398883,0.41715835,67121.0,67120.0,0.000821]
[1730023401771,0.41715828,67121.0,67120.0,0.000821]
[1730023401983,0.37258071,67121.0,67120.0,0.000821]
[1730023409045,0.35865015,67121.0,67120.0,0.000821]
[1730023409258,0.37258414,67121.0,67120.0,0.000821]
[1730023409687,0.36144359,67121.0,67120.0,0.000821]
[1730023409893,0.37259276,67121.0,67120.0,0.000821]
[1730023410307,0.3722948,67121.0,67120.0,0.000821]
[1730023412513,0.41685605,67121.0,67120.0,0.000821]
[1730023412923,0.40571639,67121.0,67120.0,0.000821]
[1730023413122,0.37230994,67121.0,67120.0,0.000821]
[1730023413691,0.22332594,67121.0,67120.0,0.000821]
[1730023414883,0.2678915,67121.0,67120.0,0.000821]
[1730023415507,0.1864915,67121.0,67120.0,0.000821]
[1730023416071,0.14192594,67121.0,67120.0,0.000821]
[1730023417638,0.04782594,67121.0,67120.0,0.000821]
[1730023418979,0.09240192,67121.0,67120.0,0.000821]
[1730023420960,0.04782594,67121.0,67120.0,0.000821]
[1730023424122,0.0366956,67121.0,67120.0,0.000821]
[1730023424345,0.04786996,67121.0,67120.0,0.000821]
[1730023427705,0.19685396,67121.0,67120.0,0.000821]
[1730023429019,0.36164193,67121.0,67120.0,0.000821]
[1730023429728,0.21265793,67121.0,67120.0,0.000821]
[1730023431703,0.21265842,67121.0,67120.0,0.000821]
[1730023432383,0.45924242,67121.0,67120.0,0.000821]
[1730023434823,0.4594295,67121.0,67120.0,0.000821]
[1730023435518,0.45942648,67121.0,67120.0,0.000821]
[1730023438966,0.44825324,67121.0,67120.0,0.000821]
[1730023439212,0.45942643,67121.0,67120.0,0.000821]
[1730023439666,0.45942874,67121.0,67120.0,0.000821]
[1730023440313,0.59350558,67121.0,67120.0,0.000821]
[1730023441683,0.5935051,67121.0,67120.0,0.000821]
[1730023441903,0.57953855,67121.0,67120.0,0.000821]
[1730023442117,0.59350431,67121.0,67120.0,0.000821]
[1730023442353,0.45942747,67121.0,67120.0,0.000821]
[1730023443194,0.45942918,67121.0,67120.0,0.000821]
[1730023443401,0.36682918,67121.0,67120.0,0.000821]
[1730023445499,0.36682886,67121.0,67120.0,0.000821]
[1730023447473,0.36682971,67121.0,67120.0,0.000821]
[1730023449071,0.34168985,67121.0,67120.0,0.000821]
[1730023449270,0.36682764,67121.0,67120.0,0.000821]
[1730023452178,0.36681466,67121.0,67120.0,0.000821]
[1730023452799,0.34167687,67121.0,67120.0,0.000821]
[1730023453020,0.35564212,67121.0,67120.0,0.000821]
[1730023453266,0.3779865,67121.0,67120.0,0.000821]
[1730023453951,0.36681523,67121.0,67120.0,0.000821]
[1730023454158,0.37798818,67121.0,67120.0,0.000821]
[1730023454377,0.366816,67121.0,67120.0,0.000821]
[1730023455033,0.35284982,67121.0,67120.0,0.000821]
[1730023456781,0.35278611,67121.0,67120.0,0.000821]
[1730023458110,0.36675354,67121.0,67120.0,0.000821]
[1730023460519,0.36675504,67121.0,67120.0,0.000821]
[1730023461410,0.36685023,67121.0,67120.0,0.000821]
[1730023464466,0.34170762,67121.0,67120.0,0.000821]
[1730023464697,0.36685999,67121.0,67120.0,0.000821]
[1730023466037,0.35291956,67121.0,67120.0,0.000821]
[1730023470837,0.35276118,67121.0,67120.0,0.000821]
[1730023475417,0.35292265,67121.0,67120.0,0.000821]
[1730023476321,0.34174382,67121.0,67120.0,0.000821]
[1730023476559,0.352925,67121.0,67120.0,0.000821]
[1730023476792,0.35292488,67121.0,67120.0,0.000821]
[1730023477878,0.20394088,67121.0,67120.0,0.000821]
[1730023478093,0.35292488,67121.0,67120.0,0.093421]
[1730023479180,0.19894088,67121.0,67120.0,0.093421]
[1730023479399,0.14569462,67121.0,67120.0,0.170021]
[1730023479612,0.19894088,67121.0,67120.0,0.170021]
[1730023479858,0.28836451,67121.0,67120.0,0.170021]
[1730023480066,0.28837565,67121.0,67120.0,0.170021]
[1730023480292,0.30234988,67121.0,67120.0,0.170021]
[1730023480523,0.04788293,67121.0,67120.0,0.170021]
[1730023482251,0.0339087,67121.0,67120.0,0.170021]
[1730023484640,0.19891015,67121.0,67120.0,0.170021]
[1730023484864,0.0339087,67121.0,67120.0,0.170021]
[1730023485116,0.10094763,67121.0,67120.0,0.170021]
[1730023485321,0.11490837,67121.0,67120.0,0.170021]
[1730023485755,0.11490832,67121.0,67120.0,0.170021]
[1730023487486,0.04786944,67121.0,67120.0,0.170021]
[1730023489021,0.09254144,67121.0,67120.0,0.170021]
[1730023489236,0.0785807,67121.0,67120.0,0.170021]
[1730023491478,0.0339087,67121.0,67120.0,0.170021]
[1730023492422,0.04786157,67121.0,67120.0,0.170021]
[1730023493294,0.04286157,67121.0,67120.0,0.319007]
[1730023493984,0.04286157,67121.0,67120.0,0.46951081]
[1730023494421,0.02547797,67121.0,67120.0,0.46951081]
[1730023495758,0.0254431,67121.0,67120.0,0.46951081]
[1730023496412,0.0254431,67121.0,67120.0,0.48129138]
[1730023499493,0.02543894,67121.0,67120.0,0.48129138]
[1730023502075,0.00034404,67121.0,67120.0,0.48129138]
[1730023502278,0.02543544,67121.0,67120.0,0.48129138]
[1730023509554,0.01428371,67121.0,67120.0,0.48129138]
[1730023509779,0.02544219,67121.0,67120.0,0.48129138]
[1730023513684,0.02544362,67121.0,67120.0,0.48129138]
[1730023514129,0.02545384,67121.0,67120.0,0.48129138]
[1730023516244,0.02545384,67121.0,67120.0,0.46951081]
[1730023516660,0.04306944,67121.0,67120.0,0.46951081]
[1730023517284,0.02911955,67121.0,67120.0,0.46951081]
[1730023517526,0.04307237,67121.0,67120.0,0.46951081]
[1730023518362,0.02545677,67121.0,67120.0,0.46951081]
[1730023518591,0.0430724,67121.0,67120.0,0.46951081]
[1730023520860,0.03191249,67121.0,67120.0,0.46951081]
[1730023521067,0.04308012,67121.0,67120.0,0.46951081]
[1730023521271,0.04308684,67121.0,67120.0,0.46951081]
[1730023522132,0.02547121,67121.0,67120.0,0.46951081]
[1730023524757,0.01431516,67121.0,67120.0,0.46951081]
[1730023524949,0.02549205,67121.0,67120.0,0.46951081]
[1730023528224,0.00034404,67121.0,67120.0,0.46951081]
[1730023528406,0.02549204,67121.0,67120.0,0.46951081]
[1730023530948,0.04311058,67121.0,67120.0,0.46951081]
[1730023532206,0.04311061,67121.0,67120.0,0.46951081]
[1730023534412,0.04311064,67121.0,67120.0,0.46951081]
[1730023535545,0.04311046,67121.0,67120.0,0.30031081]
[1730023540135,0.04311046,67121.0,67120.0,0.000821]
[1730023540360,0.04311046,67121.0,67120.0,0.149807]
[1730023540611,0.04311046,67121.0,67120.0,0.000821]
[1730023541737,0.04311046,67121.0,67120.0,0.149807]
[1730023542830,0.03192757,67121.0,67120.0,0.149807]
[1730023543054,0.01796258,67121.0,67120.0,0.149807]
[1730023543271,0.04309956,67121.0,67120.0,0.149807]
[1730023547776,0.02913457,67121.0,67120.0,0.149807]
[1730023554214,0.02913349,67121.0,67120.0,0.149807]
[1730023558097,0.02913407,67121.0,67120.0,0.149807]
[1730023564425,0.02913671,67121.0,67120.0,0.149807]
[1730023565136,0.01796258,67121.0,67120.0,0.149807]
[1730023565366,0.02913675,67121.0,67120.0,0.149807]
[1730023574838,0.01796258,67121.0,67120.0,0.149807]
[1730023575247,0.02913385,67121.0,67120.0,0.149807]
[1730023576140,0.01796258,67121.0,67120.0,0.149807]
[1730023577844,0.01796258,67121.0,67120.0,0.47081081]
[1730023578242,0.00034404,67121.0,67120.0,0.47081081]
[1730023584536,0.017964,67121.0,67120.0,0.47081081]
[1730023585579,0.02913622,67121.0,67120.0,0.47081081]
[1730023587074,0.02913621,67121.0,67120.0,0.47081081]
[1730023594624,0.0291351,67121.0,67120.0,0.47081081]
[1730023598104,0.02913541,67121.0,67120.0,0.47081081]
[1730023601595,0.02913561,67121.0,67120.0,0.47081081]
[1730023604788,0.017964,67121.0,67120.0,0.47081081]
[1730023605057,0.02913565,67121.0,67120.0,0.47081081]
[1730023608994,0.01151569,67121.0,67120.0,0.47081081]
[1730023611937,0.00034404,67121.0,67120.0,0.47081081]
[1730023612149,0.01151624,67121.0,67120.0,0.47081081]
[1730023615989,0.01151624,67121.0,67120.0,0.30031081]
[1730023619025,0.02578865,67121.0,67120.0,0.30031081]
[1730023619453,0.01461645,67121.0,67120.0,0.30031081]
[1730023619653,0.02578921,67121.0,67120.0,0.30031081]
[1730023622173,0.02578966,67121.0,67120.0,0.30031081]
[1730023625095,0.07047735,67121.0,67120.0,0.30031081]
[1730023625524,0.05930414,67121.0,67120.0,0.30031081]
[1730023625725,0.07047866,67121.0,67120.0,0.30031081]
[1730023629272,0.05930414,67121.0,67120.0,0.30031081]
[1730023629518,0.07047903,67121.0,67120.0,0.30031081]
[1730023632483,0.07047903,67121.0,67120.0,0.39681081]
[1730023632484,0.02579134,67121.0,67120.0,0.39681081]
[1730023633559,0.01151893,67121.0,67120.0,0.39681081]
[1730023636711,0.01151601,67121.0,67120.0,0.39681081]
[1730023640922,0.01151285,67121.0,67120.0,0.39681081]
[1730023644286,0.01151121,67121.0,67120.0,0.39681081]
[1730023648410,0.01151053,67121.0,67120.0,0.39681081]
[1730023652630,0.00034404,67121.0,67120.0,0.39681081]
[1730023652849,0.01151063,67121.0,67120.0,0.39681081]
[1730023653769,0.01151063,67121.0,67120.0,0.47781081]
[1730023659043,0.00034404,67121.0,67120.0,0.47781081]
[1730023659269,0.01151328,67121.0,67120.0,0.47781081]
[1730023668154,0.01151328,67121.0,67120.0,0.30031081]
[1730023668616,0.02987251,67121.0,67120.0,0.30031081]
[1730023668842,0.02987253,67121.0,67120.0,0.30031081]
[1730023669062,0.01151328,67121.0,67120.0,0.30031081]
[1730023677942,0.00034404,67121.0,67120.0,0.30031081]
[1730023678144,0.01151948,67121.0,67120.0,0.30031081]
[1730023692586,0.01152143,67121.0,67120.0,0.30031081]
[1730023696391,0.01152223,67121.0,67120.0,0.30031081]
[1730023700420,0.01152331,67121.0,67120.0,0.30031081]
[1730023701291,0.00034404,67121.0,67120.0,0.30031081]
[1730023701718,0.01152355,67121.0,67120.0,0.30031081]
[1730023705243,0.01152402,67121.0,67120.0,0.30031081]
[1730023708660,0.0115244,67121.0,67120.0,0.30031081]
[1730023716076,0.02988235,67121.0,67120.0,0.30031081]
[1730023716309,0.0115244,67121.0,67120.0,0.30031081]
[1730023716533,0.00034404,67121.0,67120.0,0.30031081]
[1730023716783,0.02988372,67121.0,67120.0,0.30031081]
[1730023717001,0.01152569,67121.0,67120.0,0.30031081]
[1730023717211,0.02988372,67121.0,67120.0,0.30031081]
[1730023717420,0.01152569,67121.0,67120.0,0.30031081]
[1730023717657,0.02988372,67121.0,67120.0,0.30031081]
[1730023717873,0.01152569,67121.0,67120.0,0.30031081]
[1730023718110,0.02988372,67121.0,67120.0,0.30031081]
[1730023718337,0.01152569,67121.0,67120.0,0.30031081]
[1730023718562,0.02988373,67121.0,67120.0,0.30031081]
[1730023723978,0.02987902,67121.0,67120.0,0.30031081]
[1730023728155,0.02987689,67121.0,67120.0,0.30031081]
[1730023736780,0.01151885,67121.0,67120.0,0.30031081]
[1730023741814,0.01152165,67121.0,67120.0,0.30031081]
[1730023745455,0.01152381,67121.0,67120.0,0.30031081]
[1730023749123,0.00034404,67121.0,67120.0,0.30031081]
[1730023749785,0.01152453,67121.0,67120.0,0.30031081]
[1730023753445,0.00034404,67121.0,67120.0,0.30031081]
[1730023753666,0.01152354,67121.0,67120.0,0.30031081]
[1730023757126,0.01152354,67121.0,67120.0,0.47011081]
[1730023757352,0.00034404,67121.0,67120.0,0.47011081]
[1730023757572,0.01152287,67121.0,67120.0,0.47011081]
[1730023761886,0.01152034,67121.0,67120.0,0.47011081]
[1730023768688,0.01152012,67121.0,67120.0,0.47011081]
[1730023769148,0.01152012,67121.0,67120.0,0.30031081]
[1730023779681,0.00034404,67121.0,67120.0,0.30031081]
[1730023779967,0.01152275,67121.0,67120.0,0.30031081]
[1730023781461,0.01152275,67121.0,67120.0,0.30031081]
[1730023783445,0.01152345,67121.0,67120.0,0.30031081]
[1730023790668,0.00034404,67121.0,67120.0,0.30031081]
[1730023790848,0.01152474,67121.0,67120.0,0.30031081]
[1730023794347,0.00034404,67121.0,67120.0,0.30031081]
[1730023794552,0.01152491,67121.0,67120.0,0.30031081]
[1730023797910,0.01152491,67121.0,67120.0,0.000821]
[1730023797911,0.10622491,67121.0,67120.0,0.000821]
[1730023798383,0.12481989,67121.0,67120.0,0.000821]
[1730023802967,0.12481989,67121.0,67120.0,0.149807]
[1730023804780,0.12481251,67121.0,67120.0,0.149807]
[1730023808467,0.03011251,67121.0,67120.0,0.149807]
[1730023810725,0.03011251,67121.0,67120.0,0.149807]
[1730023812423,0.03011186,67121.0,67120.0,0.149807]
[1730023816358,0.03011197,67121.0,67120.0,0.149807]
[1730023816580,0.01893902,67121.0,67120.0,0.149807]
[1730023816786,0.03011215,67121.0,67120.0,0.149807]
[1730023818355,0.01893902,67121.0,67120.0,0.149807]
[1730023818571,0.03011252,67121.0,67120.0,0.149807]
[1730023824157,0.03011362,67121.0,67120.0,0.149807]
[1730023828115,0.01893902,67121.0,67120.0,0.149807]
[1730023828344,0.04130168,67121.0,67120.0,0.149807]
[1730023832184,0.04130158,67121.0,67120.0,0.149807]
[1730023832396,0.03012025,67121.0,67120.0,0.149807]
[1730023835646,0.03012025,67121.0,67120.0,0.47581081]
[1730023835868,0.01152527,67121.0,67120.0,0.47581081]
[1730023839766,0.01152096,67121.0,67120.0,0.47581081]
[1730023847612,0.00034404,67121.0,67120.0,0.47581081]
[1730023847826,0.01151693,67121.0,67120.0,0.47581081]
[1730023855292,0.00034404,67121.0,67120.0,0.47581081]
[1730023855495,0.01151742,67121.0,67120.0,0.47581081]
[1730023862725,0.00034404,67121.0,67120.0,0.47581081]
[1730023874449,0.00034404,67121.0,67120.0,0.57581081]
[1730023882207,0.00034404,67121.0,67120.0,0.80129426]
[1730023882409,0.001644,67130.0,67129.0,0.35572]
[1730023883268,0.001644,67130.0,67129.0,0.45572]
[1730023884365,0.001644,67130.0,67129.0,0.426966]
[1730023885523,0.001644,67130.0,67129.0,0.43850315]
[1730023886160,0.001644,67130.0,67129.0,0.58900696]
[1730023898633,0.001644,67130.0,67129.0,0.59100696]
[1730023900874,0.001644,67130.0,67129.0,0.58900696]
[1730023907095,0.001644,67130.0,67129.0,0.59100696]
[1730023918276,0.001644,67130.0,67129.0,0.63565691]
[1730023918501,0.001644,67130.0,67129.0,0.59100696]
[1730023919447,0.001644,67130.0,67129.0,0.65798189]
[1730023920352,0.001644,67130.0,67129.0,0.82558482]
[1730023920565,0.001644,67130.0,67129.0,0.93724207]
[1730023920781,0.001644,67130.0,67129.0,0.82558482]
[1730023922383,1e-06,67130.0,67129.0,0.82558482]
[1730023923476,0.001644,67134.0,67131.0,0.283962]
[1730023923699,0.001644,67134.0,67131.0,0.80354367]
[1730023924126,0.001644,67134.0,67131.0,0.83229639]
[1730023925688,0.001644,67134.0,67131.0,0.9437734]
[1730023926332,0.001644,67134.0,67131.0,0.83229639]
[1730023926552,0.001644,67134.0,67131.0,0.94377289]
[1730023927023,0.001644,67134.0,67131.0,0.94246399]
[1730023927462,0.001644,67134.0,67131.0,0.83694249]
[1730023927668,0.001644,67134.0,67131.0,0.90188935]
[1730023930089,0.001644,67134.0,67131.0,0.79041089]
[1730023930309,1e-06,67132.0,67131.0,0.83684572]
[1730023931002,1e-06,67132.0,67131.0,0.83623486]
[1730023931704,1e-06,67132.0,67131.0,0.83602329]
[1730023933001,0.001644,67140.0,67139.0,0.012]
[1730023933213,0.001644,67140.0,67139.0,0.65840098]
[1730023933425,0.02814554,67140.0,67139.0,0.65640098]
[1730023933647,0.001644,67140.0,67139.0,0.65640098]
[1730023933867,0.22240179,67144.0,67143.0,0.248935]
[1730023934097,0.22240179,67144.0,67143.0,0.39943881]
[1730023934332,0.001644,67147.0,67146.0,0.248929]
[1730023934547,0.001644,67147.0,67146.0,0.39943281]
[1730023934768,0.001644,67147.0,67146.0,0.40143281]
[1730023936793,0.001644,67147.0,67146.0,0.58083281]
[1730023937243,0.001644,67151.0,67146.0,0.58083281]
[1730023937244,0.150934,67156.0,67155.0,0.148909]
[1730023937458,0.150934,67156.0,67155.0,0.29941281]
[1730023937697,0.17757324,67156.0,67155.0,0.29941281]
[1730023939720,0.18356324,67156.0,67155.0,0.29941281]
[1730023941702,0.18520524,67156.0,67155.0,0.29941281]
[1730023943732,0.18520524,67156.0,67155.0,0.31107012]
[1730023950070,0.18050524,67156.0,67155.0,0.31107012]
[1730023964264,0.18050524,67156.0,67155.0,0.31189112]
[1730023977367,0.19168185,67156.0,67155.0,0.31189112]
[1730023977825,0.19168185,67156.0,67155.0,0.63429291]
[1730023978048,0.18050524,67156.0,67155.0,0.41189112]
[1730023978258,0.153866,67156.0,67155.0,0.41189112]
[1730023979409,0.153866,67156.0,67155.0,0.45652232]
[1730023979621,0.153866,67156.0,67155.0,0.41189112]
[1730023980290,0.153866,67156.0,67155.0,0.41389112]
[1730023984156,0.153866,67156.0,67155.0,0.58159112]
[1730023984392,0.153866,67156.0,67155.0,0.64853793]
[1730023984861,0.09968577,67156.0,67155.0,0.58159112]
[1730023985082,0.09968577,67156.0,67155.0,0.80206755]